fUST/lending_fUST_20251217
["ID","MTS","AMOUNT","RATE_DAILY","PERIOD"]
[398890770,1765963362807,-1904.59013368,0.00057,120]
[398890771,1765963362848,-1000.0,0.00057,120]
[398890772,1765963362889,-10000.0,0.00057134,120]
[398890773,1765963362932,-162.0,0.000572,120]
[398890774,1765963362974,-1000.0,0.00057499,120]
[398890775,1765963363014,-40034.99,0.000575,120]
[398890776,1765963363054,-10000.07566427,0.000575,120]
[398890777,1765963363096,-10000.0,0.00057634,120]
[398890778,1765963363138,-2000.0,0.000577,120]
[398890779,1765963363182,-210.0,0.000577,120]
[398890780,1765963363227,-162.0,0.000579,120]
[398890781,1765963363272,-167.63529736,0.00058,60]
[398890782,1765963363317,-200.0,0.00058,120]
[398890783,1765963363362,-2000.0,0.00058,120]
[398890784,1765963363409,-1000.0,0.00058,120]
[398890785,1765963363457,-10000.0,0.00058134,120]
[398890786,1765963363504,-300.0,0.000585,120]
[398890787,1765963363549,-162.0,0.000585,120]
[398890788,1765963363593,-10000.0,0.00058634,120]
[398890789,1765963363636,-2000.0,0.000587,120]
[398890790,1765963363680,-1000.0,0.000588,120]
[398890791,1765963363726,-1000.0,0.000588,120]
[398890792,1765963363778,-1000.0,0.000588,120]
[398890793,1765963363825,-2000.0,0.000589,120]
[398890794,1765963364036,-8402.76959081,0.000589,120]
[398890795,1765963364084,-3000.0,0.00059,120]
[398890796,1765963364131,-172.07113319,0.00059,120]
[398890797,1765963364177,-300.0,0.00059,120]
[398890798,1765963364221,-1000.0,0.00059,120]
[398890799,1765963364266,-210.0,0.00059,120]
[398890800,1765963364314,-162.0,0.000591,120]
[398890801,1765963364360,-10000.0,0.00059134,120]
[398890802,1765963364404,-300.0,0.000595,120]
[398890803,1765963364447,-10000.0,0.00059634,120]
[398890804,1765963364488,-2000.0,0.000597,120]
[398890805,1765963364531,-162.0,0.000597,120]
[398890806,1765963364573,-2233.23755488,0.000599,120]
[398890807,1765963364614,-421.7,0.00059923,30]
[398890808,1765963364655,-1000.0,0.00059999,120]
[398890809,1765963364698,-1000.0,0.0006,120]
[398890810,1765963364741,-200.0,0.0006,120]
[398890811,1765963364783,-4498.82780657,0.0006,120]
[398890812,1765963364825,-1200.0,0.0006,120]
[398890813,1765963364865,-428.16,0.0006,120]
[398890814,1765963364906,-294.74465228,0.0006,120]
[398890815,1765963364948,-7999.99999902,0.0006,120]
[398890816,1765963364991,-362.2902367,0.0006,120]
[398890817,1765963365036,-162.0,0.000603,120]
[398890818,1765963365080,-300.0,0.000605,120]
[398890819,1765963365124,-1500.0,0.000609,120]
[398890820,1765963365168,-162.0,0.000609,120]
[398890821,1765963365211,-1000.0,0.00061,120]
[398890822,1765963365253,-4000.0,0.00061,120]
[398890823,1765963365295,-150.0,0.00061,120]
[398890824,1765963365340,-300.0,0.000614,120]
[398890825,1765963365382,-300.0,0.000615,120]
[398890826,1765963365424,-162.0,0.000616,120]
[398890827,1765963365465,-200.0,0.00062,120]
[398890828,1765963365508,-2000.0,0.00062,120]
[398890829,1765963365550,-162.0,0.000622,120]
[398890830,1765963365593,-300.0,0.000625,120]
[398890831,1765963365639,-162.0,0.000628,120]
[398890832,1765963365684,-4000.0,0.00063,120]
[398890833,1765963365730,-162.0,0.000634,120]
[398890834,1765963365784,-150.0,0.00063495,120]
[398890835,1765963365826,-300.0,0.000635,120]
[398890836,1765963365866,-2000.0,0.00064,120]
[398890837,1765963365909,-200.0,0.00064,120]
[398890838,1765963365949,-1500.0,0.00064,120]
[398890839,1765963365989,-162.0,0.00064,120]
[398890840,1765963366031,-548316.57136374,0.0006443,120]
[398890841,1765963366074,-1000.0,0.00064443,120]
[398890842,1765963366112,-300.0,0.000645,120]
[398890843,1765963366154,-182.38,0.00064557,120]
[398890844,1765963366198,-162.0,0.000646,120]
[398890845,1765963366242,-4000.0,0.00065,120]
[398890846,1765963366284,-4498.82780657,0.00065,120]
[398890847,1765963366324,-4607.12074939,0.00065,30]
[398890848,1765963366362,-402.1467,0.00065,80]
[398890849,1765963366402,-162.0,0.000653,120]
[398890850,1765963366449,-300.0,0.000655,120]
[398890851,1765963366493,-231.76,0.00065753,60]
[398890852,1765963366534,-1500.0,0.000659,120]
[398890853,1765963366574,-162.0,0.000659,120]
[398890854,1765963366615,-151.0,0.00066,120]
[398890855,1765963366658,-1500.0,0.00066,120]
[398890856,1765963366708,-300.0,0.00066,120]
[398890857,1765963366751,-300.0,0.000665,120]
[398890858,1765963366808,-162.0,0.000665,120]
[398890859,1765963366853,-50583.05,0.000667,120]
[398890860,1765963366895,-3000.0,0.00067,120]
[398890861,1765963366935,-4000.0,0.00067,120]
[398890862,1765963366975,-162.0,0.000671,120]
[398890863,1765963367018,-300.0,0.000675,120]
[398890864,1765963367060,-162.0,0.000677,120]
[398890865,1765963367103,-200.0,0.00068,120]
[398890866,1765963367145,-1500.0,0.00068,120]
[398890867,1765963367187,-162.0,0.000684,120]
[398890868,1765963367333,431.0,0.00049999,120]
[398890869,1765963367387,500.0,0.0005,120]
[398890870,1765963367436,500.0,0.00050548,120]
[398890871,1765963367494,500.0,0.00051096,120]
[398890872,1765963367540,436.57010379,0.00049999,120]
[398890873,1765963367589,500.0,0.00051644,120]
[398890874,1765963367634,166.198891,0.00037539,31]
[398890875,1765963367680,22190.23878411,0.0006443,120]
[398890876,1765963367725,500.0,0.00052192,120]
[398890877,1765963367771,500.0,0.0005274,120]
[398890878,1765963386844,-296.0,0.00054795,120]
[398890879,1765963386889,-250.0,0.00068399,120]
[398890880,1765963386932,-1765.61254902,0.00068399,120]
[398890881,1765963386974,-296.0,0.000684,120]
[398890882,1765963387017,-10000.0,0.00068493,30]
[398890883,1765963387059,-300.0,0.000685,120]
[398890884,1765963387099,-162.0,0.00069,120]
[398890885,1765963387139,-3000.0,0.00069,120]
[398890886,1765963387181,-1500.0,0.00069,120]
[398890887,1765963387225,-3000.0,0.0006901,120]
[398890888,1765963387271,-3000.0,0.0006902,120]
[398890889,1765963387316,-3000.0,0.0006903,120]
[398890890,1765963387358,-4144.569349,0.0006904,120]
[398890891,1765963387402,-300.0,0.000695,120]
[398890892,1765963387446,-162.0,0.000696,120]
[398890893,1765963387489,-1000.0,0.00069999,120]
[398890894,1765963387530,-5000.0,0.0007,120]
[398890895,1765963387572,-200.0,0.0007,120]
[398890896,1765963387617,-4498.82780657,0.0007,120]
[398890897,1765963387661,-197.9116831,0.0007,120]
[398890898,1765963387706,-1500.0,0.0007,120]
[398890899,1765963387750,-162.0,0.000702,120]
[398890900,1765963387793,-1000.0,0.00070649,120]
[398890901,1765963387836,-1000.0,0.00070649,120]
[398890902,1765963387879,-162.0,0.000708,120]
[398890903,1765963387923,-1500.0,0.00071,120]
[398890904,1765963388022,250.0,0.00068399,120]
[398890905,1765963388085,414.0,0.00068399,120]
[398890906,1765963388138,250.0,0.00068399,120]
[398890907,1765963388188,1513.49210731,0.00068399,120]
[398890908,1765963388240,429.318,0.00068399,120]
[398890909,1765963388294,614.82991773,0.000332,117]
[398890910,1765963388347,250.0,0.00068399,120]
[398890911,1765963388612,588.5,0.00071,120]
[398890912,1765963388666,500.0,0.0005274,120]
[398890913,1765963388802,445.202766,0.00068399,120]
[398890914,1765963389002,250.88504518,0.00068399,120]
[398890915,1765963389315,250.0,0.00068399,120]
[398890916,1765963389426,461.67526834,0.00068399,120]
[398890917,1765963389501,1001.0,0.00068399,120]
[398890918,1765963389935,250.0,0.00068399,120]
[398890919,1765963389992,500.0,0.00053288,120]
[398890920,1765963390128,1001.0,0.00068399,120]
[398890921,1765963390188,478.75725327,0.00068399,120]
[398890922,1765963390569,250.0,0.00068399,120]
[398890923,1765963390752,1001.0,0.00068399,120]
[398890924,1765963390801,496.47127164,0.00068399,120]
[398890925,1765963390941,500.0,0.00053836,120]
[398890926,1765963391122,1000.0,0.00068399,120]
[398890927,1765963391196,250.0,0.00068399,120]
[398890928,1765963391402,1001.0,0.00068399,120]
[398890929,1765963391451,514.84070869,0.00068399,120]
[398890930,1765963391723,1000.0,0.00068399,120]
[398890931,1765963391827,250.0,0.00068399,120]
[398890932,1765963392324,1000.0,0.00068399,120]
[398890933,1765963392375,500.0,0.00054384,120]
[398890934,1765963392495,533.88981491,0.00068399,120]
[398890935,1765963392545,1001.0,0.00068399,120]
[398890936,1765963392965,1000.0,0.00068399,120]
[398890937,1765963393128,553.64373807,0.00068399,120]
[398890938,1765963393568,1000.0,0.00068399,120]
[398890939,1765963393615,1001.0,0.00068399,120]
[398890940,1765963393738,574.12855637,0.00068399,120]
[398890941,1765963393784,500.0,0.00054932,120]
[398890942,1765963393903,6533.0,0.00068493,30]
[398890943,1765963394180,1000.0,0.00068399,120]
[398890944,1765963394250,1001.0,0.00068399,120]
[398890945,1765963394356,595.37131296,0.00068399,120]
[398890946,1765963394838,1000.0,0.00068399,120]
[398890947,1765963394889,1001.0,0.00068399,120]
[398890948,1765963394938,1507.0,0.00068493,30]
[398890949,1765963394990,500.0,0.0005548,120]
[398890950,1765963395040,711.09135141,0.00068399,120]
[398890951,1765963395677,219.01218027,0.00068399,120]
[398890952,1765963395736,1001.0,0.00068399,120]
[398890953,1765963395821,348.0,0.00068493,30]
[398890954,1765963395896,500.0,0.00056028,120]
[398890955,1765963396141,1001.0,0.00068399,120]
[398890956,1765963396737,251.92855197,0.00068399,120]
[398890957,1765963396785,1001.0,0.00068399,120]
[398890958,1765963396954,500.0,0.00056576,120]
[398890959,1765963397353,488.91689433,0.00068399,120]
[398890960,1765963398168,500.0,0.00057124,120]
[398890964,1765963428297,5000.0,0.00019,120]
[398890969,1765963484524,151.0,5.2e-07,2]
[398890970,1765963502598,150.0,7.759e-05,2]
[398890971,1765963503015,150.0,8.464e-05,2]
[398890972,1765963503428,150.0,9.17e-05,2]
[398890985,1765963570713,150.0,7.718e-05,2]
[398890986,1765963571088,150.0,8.42e-05,2]
[398890987,1765963571518,150.0,9.122e-05,2]
[398890988,1765963636332,-150.0,9.875e-05,2]
[398890989,1765963636353,-150.0,0.00013359,2]
[398890990,1765963636376,-150.0,0.00013494,2]
[398890991,1765963636396,-613.0,0.00013562,2]
[398890992,1765963636416,-935.475627,0.00013699,2]
[398890993,1765963636435,-177.0,0.00015494,2]
[398890994,1765963636454,-306.80306318,0.00017325,2]
[398890995,1765963636474,-168.97776926,0.00017494,2]
[398891000,1765963697348,-5884.32527763,0.000125,2]
[398891001,1765963697372,-425.9,0.00017926,2]
[398891002,1765963697393,-425.9,0.00018107,2]
[398891003,1765963697417,-198.08824625,0.0001837,2]
[398891004,1765963697440,-164.91440972,0.0001862,2]
[398891005,1765963697464,-250.8023188,0.00018703,2]
[398891006,1765963697486,-153.0,0.00018899,2]
[398891007,1765963697508,-153.0,0.00018899,2]
[398891008,1765963697535,-153.0,0.00018899,2]
[398891009,1765963697557,-393.4963321,0.00018899,2]
[398891010,1765963697579,-303.03000726,0.000189,2]
[398891011,1765963697603,-153.0,0.0001891,2]
[398891012,1765963697625,-2000.0,0.00018999,2]
[398891013,1765963697651,-2000.0,0.0001906,5]
[398891014,1765963697676,-300.0,0.00019067,2]
[398891015,1765963697703,-3335.8725458,0.00019068,2]
[398891016,1765963697730,-608.73,0.00019106,3]
[398891017,1765963697755,-198.1789905,0.00019115,2]
[398891018,1765963697781,-500.0,0.00019115,2]
[398891019,1765963697806,-252.2677716,0.00019115,2]
[398891020,1765963697834,-423.34572982,0.00019115,2]
[398891021,1765963697862,-300.65315743,0.00019115,2]
[398891022,1765963697887,-182.38,0.00019115,2]
[398891023,1765963697911,-502.58625511,0.00019115,2]
[398891024,1765963697939,-753933.980718,0.00019116,2]
[398891025,1765963697963,-751.13646784,0.00019168,2]
[398891026,1765963697987,-425.9,0.00019188,2]
[398891027,1765963698011,-7555.17,0.000192,2]
[398891028,1765963698034,-166.24,0.000192,2]
[398891029,1765963698056,-160.0,0.0001922,2]
[398891030,1765963698081,-620.6378214,0.00019388,2]
[398891031,1765963698107,-189.0,0.00019497,10]
[398891032,1765963698130,-500.0,0.00019636,2]
[398891033,1765963698153,-260.0,0.00019768,2]
[398891034,1765963698181,-4277.0,0.0002,2]
[398891035,1765963698205,-500.0,0.0002,2]
[398891036,1765963698228,-300.0,0.0002,2]
[398891037,1765963698252,-209.77239607,0.0002,2]
[398891038,1765963698275,-150.0,0.0002,2]
[398891039,1765963698297,-188.1454,0.0002,2]
[398891040,1765963698319,-1721.38819295,0.0002,2]
[398891058,1765963746093,-2955.64783225,0.000114,2]
[398891059,1765963752104,-300.35004466,0.00037904,3]
[398891060,1765963752145,-151.57544,0.00037904,120]
[398891061,1765963752188,-151.57544,0.00037904,120]
[398891062,1765963752231,-151.57544,0.00037904,120]
[398891063,1765963752274,-151.57544,0.00037904,120]
[398891064,1765963752313,-151.57544,0.00037904,120]
[398891065,1765963752352,-151.57544,0.00037904,120]
[398891066,1765963752390,-151.57544,0.00037904,120]
[398891067,1765963752429,-151.57544,0.00037904,120]
[398891068,1765963752467,-151.57544,0.00037904,120]
[398891069,1765963752504,-151.57544,0.00037904,120]
[398891070,1765963752544,-151.57544,0.00037904,120]
[398891071,1765963752587,-151.57544,0.00037904,120]
[398891072,1765963752626,-151.57544,0.00037904,120]
[398891073,1765963752664,-151.57544,0.00037904,120]
[398891074,1765963752701,-151.57544,0.00037904,120]
[398891075,1765963752738,-151.57544,0.00037904,120]
[398891076,1765963752776,-151.57544,0.00037904,120]
[398891077,1765963752815,-151.57544,0.00037904,120]
[398891078,1765963752853,-151.57544,0.00037904,120]
[398891079,1765963752889,-151.57544,0.00037904,120]
[398891080,1765963752925,-151.57544,0.00037904,120]
[398891081,1765963752961,-151.57544,0.00037904,120]
[398891082,1765963752998,-151.57544,0.00037904,120]
[398891083,1765963753034,-151.57544,0.00037904,120]
[398891084,1765963753069,-151.57544,0.00037904,120]
[398891085,1765963753104,-151.57544,0.00037904,120]
[398891086,1765963753139,-151.57544,0.00037904,120]
[398891087,1765963753177,-151.57544,0.00037904,120]
[398891088,1765963753217,-151.57544,0.00037904,120]
[398891089,1765963753258,-151.57544,0.00037904,120]
[398891090,1765963753298,-151.57544,0.00037904,120]
[398891091,1765963753338,-2157.97,0.00037904,120]
[398891092,1765963753376,-2157.97,0.00037904,120]
[398891093,1765963753413,-2157.97,0.00037904,120]
[398891094,1765963753450,-2157.97,0.00037904,120]
[398891095,1765963753486,-2157.97,0.00037904,120]
[398891096,1765963753522,-2157.97,0.00037904,120]
[398891097,1765963753557,-2157.97,0.00037904,120]
[398891098,1765963753593,-2157.97,0.00037904,120]
[398891099,1765963753630,-2157.97,0.00037904,120]
[398891100,1765963753670,-2157.97,0.00037904,120]
[398891101,1765963753708,-2157.97,0.00037904,120]
[398891102,1765963753746,-2157.97,0.00037904,120]
[398891103,1765963753784,-2157.97,0.00037904,120]
[398891104,1765963753824,-2157.97,0.00037904,120]
[398891105,1765963753862,-2157.97,0.00037904,120]
[398891106,1765963753901,-2157.97,0.00037904,120]
[398891107,1765963753946,-2157.97,0.00037904,120]
[398891108,1765963753988,-2157.97,0.00037904,120]
[398891109,1765963754029,-2157.97,0.00037904,120]
[398891110,1765963754069,-2157.97,0.00037904,120]
[398891111,1765963754107,-2157.97,0.00037904,120]
[398891112,1765963754146,-2157.97,0.00037904,120]
[398891113,1765963754186,-2157.97,0.00037904,120]
[398891114,1765963754226,-2158.10600979,0.00037904,120]
[398891115,1765963754268,-173.72520085,0.00037904,120]
[398891116,1765963754309,-248.97608614,0.00037904,120]
[398891117,1765963754349,-248.97608614,0.00037904,120]
[398891118,1765963754393,-248.97608614,0.00037904,120]
[398891119,1765963754433,-170.090844,0.00037904,120]
[398891120,1765963754476,-250.0,0.00037904,10]
[398891121,1765963754531,-282.50619,0.00037904,10]
[398891122,1765963754585,-500.0,0.00037904,120]
[398891123,1765963754640,-151.57544,0.00037904,120]
[398891124,1765963754695,-151.57544,0.00037904,120]
[398891125,1765963754767,-151.57544,0.00037904,120]
[398891126,1765963754832,-151.57544,0.00037904,120]
[398891127,1765963754885,-151.57544,0.00037904,120]
[398891128,1765963754937,-151.57544,0.00037904,120]
[398891129,1765963754992,-151.57544,0.00037904,120]
[398891130,1765963755051,-151.57544,0.00037904,120]
[398891131,1765963755107,-151.57544,0.00037904,120]
[398891132,1765963755164,-151.57544,0.00037904,120]
[398891133,1765963755214,-151.57544,0.00037904,120]
[398891134,1765963755266,-151.57544,0.00037904,120]
[398891135,1765963755313,-151.57544,0.00037904,120]
[398891136,1765963755373,-151.57544,0.00037904,120]
[398891137,1765963755428,-151.57544,0.00037904,120]
[398891138,1765963755481,-151.57544,0.00037904,120]
[398891139,1765963755534,-151.57544,0.00037904,120]
[398891140,1765963755588,-151.57544,0.00037904,120]
[398891141,1765963755638,-151.57544,0.00037904,120]
[398891142,1765963755680,-308.62733677,0.00037904,30]
[398891143,1765963755721,-151.575439,0.00037904,120]
[398891144,1765963755762,-151.575439,0.00037904,120]
[398891145,1765963755800,-151.575439,0.00037904,120]
[398891146,1765963755842,-151.575439,0.00037904,120]
[398891147,1765963755880,-151.575439,0.00037904,120]
[398891148,1765963755917,-151.575439,0.00037904,120]
[398891149,1765963755954,-151.575439,0.00037904,120]
[398891150,1765963755992,-151.575439,0.00037904,120]
[398891151,1765963756033,-151.575439,0.00037904,120]
[398891152,1765963756072,-151.575439,0.00037904,120]
[398891153,1765963756107,-285.29581753,0.00037904,120]
[398891154,1765963756142,-165.68905798,0.00037904,120]
[398891155,1765963756178,-169.70831099,0.00037904,120]
[398891156,1765963756215,-285.29581753,0.00037904,120]
[398891157,1765963756254,-169.70831099,0.00037904,120]
[398891158,1765963756292,-285.29581753,0.00037904,120]
[398891159,1765963756330,-169.70831099,0.00037904,120]
[398891160,1765963756366,-61087.02705839,0.00037904,24]
[398891161,1765963756403,-151.575439,0.00037904,120]
[398891162,1765963756444,-151.575439,0.00037904,120]
[398891163,1765963756480,-151.575439,0.00037904,120]
[398891164,1765963756517,-151.575439,0.00037904,120]
[398891165,1765963756553,-151.575439,0.00037904,120]
[398891166,1765963756590,-151.575439,0.00037904,120]
[398891167,1765963756627,-151.575439,0.00037904,120]
[398891168,1765963756664,-151.575439,0.00037904,120]
[398891169,1765963756702,-151.575439,0.00037904,120]
[398891170,1765963756739,-151.575439,0.00037904,120]
[398891171,1765963756776,-341.67813714,0.00037904,30]
[398891172,1765963756813,-219.27189143,0.00037904,60]
[398891173,1765963756850,-177.36552583,0.00037904,120]
[398891174,1765963756886,-151.57544,0.00037904,120]
[398891175,1765963756923,-151.57544,0.00037904,120]
[398891176,1765963756960,-151.57544,0.00037904,120]
[398891177,1765963757000,-244.08821116,0.00037904,30]
[398891178,1765963757041,-151.57544,0.00037904,120]
[398891179,1765963757083,-151.57544,0.00037904,120]
[398891180,1765963757123,-151.57544,0.00037904,120]
[398891181,1765963757166,-151.57544,0.00037904,120]
[398891182,1765963757207,-151.57544,0.00037904,120]
[398891183,1765963757250,-151.57544,0.00037904,120]
[398891184,1765963757291,-151.57544,0.00037904,120]
[398891185,1765963757333,-244.0517118,0.00037904,60]
[398891186,1765963757376,-273.70809651,0.00037904,60]
[398891187,1765963757420,-353.34332342,0.00037904,120]
[398891188,1765963757462,-160.26865205,0.00037904,30]
[398891189,1765963757504,-264.18954523,0.00037904,35]
[398891190,1765963757549,-199.67994425,0.00037904,120]
[398891191,1765963757598,-151.57544,0.00037904,120]
[398891192,1765963757637,-151.57544,0.00037904,120]
[398891193,1765963757690,-151.57544,0.00037904,120]
[398891194,1765963757732,-151.57544,0.00037904,120]
[398891195,1765963757772,-151.57544,0.00037904,120]
[398891196,1765963757810,-151.57544,0.00037904,120]
[398891197,1765963757847,-151.57544,0.00037904,120]
[398891198,1765963757885,-151.57544,0.00037904,120]
[398891199,1765963758535,-151.57544,0.00037904,120]
[398891200,1765963758579,-151.57544,0.00037904,120]
[398891201,1765963758620,-241.73164852,0.00037904,120]
[398891202,1765963789863,150.0,5.2e-07,2]
[398891203,1765963790893,150.0,5.2e-07,2]
[398891204,1765963793803,-71.18252877,0.000114,2]
[398891205,1765963793846,-353.34,0.00019,2]
[398891206,1765963793889,-5000.0,0.0002,2]
[398891207,1765963793936,-7054.50384868,0.0002,2]
[398891208,1765963793979,-4575.22688995,0.0002,2]
[398891209,1765963794023,-5598.80843884,0.0002,2]
[398891210,1765963794065,-935.475627,0.00020187,2]
[398891211,1765963794108,-218.236,0.00020205,2]
[398891212,1765963794151,-237.925,0.00020205,2]
[398891213,1765963794193,-250.0,0.00020205,2]
[398891214,1765963794232,-258.484,0.00020205,2]
[398891215,1765963794272,-266.391,0.00020205,2]
[398891216,1765963794310,-425.9,0.00020269,2]
[398891217,1765963794348,-2167.208,0.00020581,2]
[398891218,1765963794383,-1366.697,0.00020581,2]
[398891219,1765963794419,-635.077,0.00020581,2]
[398891220,1765963794455,-415.0,0.00020581,2]
[398891221,1765963794492,-23211.23919769,0.00021,3]
[398891222,1765963794530,-150.0,0.00021,2]
[398891223,1765963794569,-418.69578392,0.00021077,2]
[398891224,1765963794607,-425.9,0.00021351,2]
[398891225,1765963794650,-600.0,0.00021419,10]
[398891226,1765963794690,-1117.14807853,0.00021487,2]
[398891227,1765963794733,-314744.47464319,0.000219,2]
[398891228,1765963794917,-500.0,0.00021918,2]
[398891229,1765963794965,-500.0,0.00021918,2]
[398891230,1765963795011,-500.0,0.00021918,2]
[398891231,1765963795053,-500.0,0.00021918,2]
[398891232,1765963795093,-500.0,0.00021918,2]
[398891233,1765963795132,-500.0,0.00021918,2]
[398891234,1765963795173,-500.0,0.00021918,2]
[398891235,1765963795219,-500.0,0.00021918,2]
[398891236,1765963795265,-630.44973548,0.00021918,2]
[398891237,1765963795311,-500.0,0.00021918,2]
[398891238,1765963795358,-500.0,0.00021918,2]
[398891239,1765963795405,-500.0,0.00021918,2]
[398891240,1765963795458,-500.0,0.00021918,2]
[398891241,1765963795502,-500.0,0.00021918,2]
[398891242,1765963795544,-500.0,0.00021918,2]
[398891243,1765963795590,-500.0,0.00021918,2]
[398891244,1765963795634,-500.0,0.00021918,2]
[398891245,1765963795677,-500.0,0.00021918,2]
[398891246,1765963795715,-500.0,0.00021918,2]
[398891247,1765963795756,-500.0,0.00021918,2]
[398891248,1765963795798,-500.0,0.00021918,2]
[398891249,1765963795841,-500.0,0.00021918,2]
[398891250,1765963795885,-500.0,0.00021918,2]
[398891251,1765963795925,-18825.24,0.00022,2]
[398891252,1765963795963,-160.08,0.00022,7]
[398891253,1765963796001,-602.7161527,0.00022097,2]
[398891254,1765963796039,-245.0,0.00022301,7]
[398891255,1765963796077,-425.9,0.00022432,2]
[398891256,1765963796114,-300.0,0.00022805,2]
[398891257,1765963796155,-1999.6462646,0.00022822,2]
[398891258,1765963796198,-7555.17,0.000229,2]
[398891259,1765963796241,-150.0,0.00023205,2]
[398891260,1765963796285,-150.0,0.00023205,2]
[398891261,1765963796325,-425.9,0.00023513,2]
[398891262,1765963796366,-720.0,0.00023561,10]
[398891263,1765963796404,-350.22,0.00023571,10]
[398891264,1765963796441,-667.84,0.00023571,10]
[398891265,1765963796478,-556.53,0.00023571,10]
[398891266,1765963796513,-2158.0,0.00023581,2]
[398891267,1765963796549,-632.0,0.00023581,2]
[398891268,1765963796592,-415.0,0.00023581,2]
[398891269,1765963796632,-985.5,0.00023652,10]
[398891270,1765963796671,-700.54776013,0.00024,5]
[398891271,1765963796709,-1325.75001534,0.00024,60]
[398891272,1765963796750,-284027.32417675,0.00024142,2]
[398891273,1765963796796,-151.0,0.000242,5]
[398891274,1765963796838,-187.44910101,0.00024235,2]
[398891275,1765963796875,-302.4071107,0.00024329,2]
[398891276,1765963796910,-292.0,0.00024373,2]
[398891277,1765963796946,-18825.24,0.000244,2]
[398891278,1765963796982,-2000.0,0.00024408,15]
[398891279,1765963797017,-507.56231145,0.000245,2]
[398891280,1765963797055,-151.0,0.000245,5]
[398891281,1765963797092,-187.44910101,0.00024527,17]
[398891282,1765963797129,-425.9,0.00024594,2]
[398891283,1765963797166,-151.0,0.000246,8]
[398891284,1765963797204,-359.0,0.00024634,2]
[398891285,1765963797242,-150.0,0.00024658,2]
[398891286,1765963797282,-380.0,0.00024658,2]
[398891287,1765963797321,-151.0,0.000247,9]
[398891288,1765963797359,-160.0,0.00024702,2]
[398891289,1765963797397,-165.769371,0.00024728,2]
[398891290,1765963797434,-269947.49586326,0.000248,2]
[398891291,1765963816322,5000.0,0.00019,120]
[398891313,1765963831616,-165.0,0.00017945,3]
[398891314,1765963831627,-1781.20518151,0.000247,2]
[398891315,1765963831639,-3139.50181178,0.000247,2]
[398891316,1765963831649,-463.78,0.0002479,10]
[398891317,1765963831658,-386.48,0.0002479,10]
[398891318,1765963831667,-13346.52955719,0.000248,2]
[398891434,1765963838315,-500.0,0.00024799,2]
[398891436,1765963838325,-500.0,0.00024799,2]
[398891438,1765963838334,-500.0,0.00024799,2]
[398891440,1765963838343,-365.47717774,0.00024799,2]
[398891442,1765963838354,-134.52282226,0.00024799,2]
[398891444,1765963838363,-500.0,0.00024799,2]
[398891446,1765963838372,-500.0,0.00024799,2]
[398891448,1765963838381,-630.44973548,0.00024799,2]
[398891450,1765963838389,-500.0,0.00024799,2]
[398891452,1765963838398,-500.0,0.00024799,2]
[398891454,1765963838408,-500.0,0.00024799,2]
[398891456,1765963838417,-500.0,0.00024799,2]